fUST/lending_fUST_20260602
["ID","MTS","AMOUNT","RATE_DAILY","PERIOD"]
[423731858,1780345839000,-500.0,0.00014534,2]
[423731868,1780345839000,-500.0,0.00014632,2]
[423731856,1780345839000,-500.0,0.00014534,2]
[423731865,1780345839000,-500.0,0.00014632,2]
[423731861,1780345839000,-150.56336275,0.00014534,2]
[423731862,1780345839000,-485.75741655,0.00014534,2]
[423731860,1780345839000,-500.0,0.00014534,2]
[423731864,1780345839000,-4535.02115452,0.00014615,3]
[423731863,1780345839000,-239.6309749,0.00014603,2]
[423731866,1780345839000,-500.0,0.00014632,2]
[423731915,1780345839000,-500.0,0.00014633,2]
[423731871,1780345839000,-500.0,0.00014632,2]
[423731881,1780345839000,-500.0,0.00014633,2]
[423731872,1780345839000,-500.0,0.00014632,2]
[423731878,1780345839000,-365.32238496,0.00014632,2]
[423731880,1780345839000,-500.0,0.00014633,2]
[423731870,1780345839000,-500.0,0.00014632,2]
[423731879,1780345839000,-500.0,0.00014633,2]
[423731874,1780345839000,-500.0,0.00014632,2]
[423731882,1780345839000,-500.0,0.00014633,2]
[423731873,1780345839000,-500.0,0.00014632,2]
[423731875,1780345839000,-500.0,0.00014632,2]
[423731877,1780345839000,-500.0,0.00014632,2]
[423731876,1780345839000,-500.0,0.00014632,2]
[423731894,1780345839000,-469.637018,0.00014633,2]
[423731912,1780345839000,-500.0,0.00014633,2]
[423731977,1780345839000,-500.0,0.00014634,2]
[423731913,1780345839000,-500.0,0.00014633,2]
[423731957,1780345839000,-500.0,0.00014634,2]
[423731958,1780345839000,-552.96241329,0.00014634,2]
[423731964,1780345839000,-500.0,0.00014634,2]
[423731953,1780345839000,-500.0,0.00014634,2]
[423731956,1780345839000,-500.0,0.00014634,2]
[423731955,1780345839000,-500.0,0.00014634,2]
[423731959,1780345839000,-527.45630639,0.00014634,2]
[423731963,1780345839000,-500.0,0.00014634,2]
[423731960,1780345839000,-500.0,0.00014634,2]
[423731962,1780345839000,-500.0,0.00014634,2]
[423731961,1780345839000,-500.79750258,0.00014634,2]
[423731976,1780345839000,-500.0,0.00014634,2]
[423731966,1780345839000,-500.0,0.00014634,2]
[423731965,1780345839000,-500.0,0.00014634,2]
[423731968,1780345839000,-500.0,0.00014634,2]
[423731967,1780345839000,-500.0,0.00014634,2]
[423731969,1780345839000,-500.0,0.00014634,2]
[423731971,1780345839000,-500.0,0.00014634,2]
[423731970,1780345839000,-500.0,0.00014634,2]
[423731974,1780345839000,-500.0,0.00014634,2]
[423731975,1780345839000,-500.0,0.00014634,2]
[423731973,1780345839000,-500.0,0.00014634,2]
[423731972,1780345839000,-500.0,0.00014634,2]
[423731978,1780345839000,-500.0,0.00014634,2]
[423731980,1780345839000,-500.0,0.00014634,2]
[423731982,1780345839000,-500.0,0.00014634,2]
[423731983,1780345839000,-500.0,0.00014634,2]
[423731979,1780345839000,-500.0,0.00014634,2]
[423731920,1780345839000,-500.0,0.00014633,2]
[423731952,1780345839000,-500.0,0.00014634,2]
[423731954,1780345839000,-267.13504392,0.00014634,2]
[423731981,1780345839000,-500.0,0.00014634,2]
[423731945,1780345839000,-532.8420211,0.00014633,2]
[423731923,1780345839000,-500.0,0.00014633,2]
[423731947,1780345839000,-611.33239356,0.00014634,2]
[423731917,1780345839000,-501.22262463,0.00014633,2]
[423731919,1780345839000,-500.0,0.00014633,2]
[423731926,1780345839000,-500.42768074,0.00014633,2]
[423731933,1780345839000,-500.0,0.00014633,2]
[423731924,1780345839000,-500.0,0.00014633,2]
[423731929,1780345839000,-500.0,0.00014633,2]
[423731931,1780345839000,-500.57495586,0.00014633,2]
[423731928,1780345839000,-500.37325397,0.00014633,2]
[423731935,1780345839000,-500.39662144,0.00014633,2]
[423731930,1780345839000,-500.53867313,0.00014633,2]
[423731927,1780345839000,-500.53865918,0.00014633,2]
[423731932,1780345839000,-500.0,0.00014633,2]
[423731918,1780345839000,-500.0,0.00014633,2]
[423731937,1780345839000,-500.4864851,0.00014633,2]
[423731936,1780345839000,-500.0,0.00014633,2]
[423731948,1780345839000,-443.42444975,0.00014634,2]
[423731946,1780345839000,-500.0,0.00014633,2]
[423731942,1780345839000,-553.81852192,0.00014633,2]
[423731941,1780345839000,-714.7383,0.00014633,2]
[423731943,1780345839000,-500.0,0.00014633,2]
[423731944,1780345839000,-500.0,0.00014633,2]
[423731940,1780345839000,-500.0,0.00014633,2]
[423731939,1780345839000,-501.28827127,0.00014633,2]
[423731950,1780345839000,-500.36055106,0.00014634,2]
[423731938,1780345839000,-500.0,0.00014633,2]
[423731951,1780345839000,-500.0,0.00014634,2]
[423731934,1780345839000,-264.99441175,0.00014633,2]
[423731949,1780345839000,-500.0,0.00014634,2]
[423732023,1780345840000,-500.0,0.00014634,2]
[423732024,1780345840000,-500.0,0.00014634,2]
[423732026,1780345840000,-500.0,0.00014634,2]
[423732022,1780345840000,-500.0,0.00014634,2]
[423732017,1780345840000,-500.0,0.00014634,2]
[423732021,1780345840000,-500.0,0.00014634,2]
[423732019,1780345840000,-500.0,0.00014634,2]
[423732018,1780345840000,-500.0,0.00014634,2]
[423732015,1780345840000,-500.0,0.00014634,2]
[423732016,1780345840000,-500.0,0.00014634,2]
[423732025,1780345840000,-285.99894038,0.00014634,2]
[423732027,1780345840000,-151.13035007,0.00014634,2]
[423732037,1780345840000,-500.0,0.00014634,2]
[423732033,1780345840000,-500.45014818,0.00014634,2]
[423732036,1780345840000,-500.0,0.00014634,2]
[423732034,1780345840000,-500.0,0.00014634,2]
[423732039,1780345840000,-500.0,0.00014634,2]
[423732038,1780345840000,-500.0,0.00014634,2]
[423732040,1780345840000,-500.0,0.00014634,2]
[423732028,1780345840000,-500.39639111,0.00014634,2]
[423732029,1780345840000,-500.0,0.00014634,2]
[423732030,1780345840000,-500.0,0.00014634,2]
[423732031,1780345840000,-500.0,0.00014634,2]
[423732032,1780345840000,-500.0,0.00014634,2]
[423732006,1780345840000,-500.0,0.00014634,2]
[423732041,1780345840000,-500.0,0.00014634,2]
[423732035,1780345840000,-500.0,0.00014634,2]
[423732008,1780345840000,-500.45758487,0.00014634,2]
[423731999,1780345840000,-500.0,0.00014634,2]
[423732007,1780345840000,-500.0,0.00014634,2]
[423732043,1780345840000,-500.0,0.00014634,2]
[423731987,1780345840000,-500.0,0.00014634,2]
[423731984,1780345840000,-253.77246949,0.00014634,2]
[423731985,1780345840000,-500.0,0.00014634,2]
[423731986,1780345840000,-500.0,0.00014634,2]
[423731988,1780345840000,-500.0,0.00014634,2]
[423731990,1780345840000,-283.34715702,0.00014634,2]
[423731996,1780345840000,-500.0,0.00014634,2]
[423731989,1780345840000,-500.55329386,0.00014634,2]
[423731991,1780345840000,-500.59604064,0.00014634,2]
[423731992,1780345840000,-500.70052025,0.00014634,2]
[423731994,1780345840000,-500.0,0.00014634,2]
[423731993,1780345840000,-500.0,0.00014634,2]
[423732000,1780345840000,-500.0,0.00014634,2]
[423731997,1780345840000,-500.0,0.00014634,2]
[423731998,1780345840000,-500.0,0.00014634,2]
[423731995,1780345840000,-500.0,0.00014634,2]
[423732002,1780345840000,-555.958705,0.00014634,2]
[423732003,1780345840000,-500.0,0.00014634,2]
[423732005,1780345840000,-500.0,0.00014634,2]
[423732001,1780345840000,-500.0,0.00014634,2]
[423732013,1780345840000,-500.0,0.00014634,2]
[423732012,1780345840000,-249.64966195,0.00014634,2]
[423732004,1780345840000,-500.0,0.00014634,2]
[423732014,1780345840000,-466.32848087,0.00014634,2]
[423732009,1780345840000,-500.81549763,0.00014634,2]
[423732011,1780345840000,-500.0,0.00014634,2]
[423732010,1780345840000,-500.0,0.00014634,2]
[423732044,1780345840000,-500.0,0.00014634,2]
[423732020,1780345840000,-500.0,0.00014634,2]
[423732048,1780345840000,-500.0,0.00014634,2]
[423732100,1780345840000,-500.0,0.00014648,2]
[423732091,1780345840000,-500.87575633,0.00014648,2]
[423732093,1780345840000,-500.0,0.00014648,2]
[423732112,1780345840000,-500.0,0.00014735,2]
[423732108,1780345840000,-500.76090806,0.00014735,2]
[423732106,1780345840000,-500.0,0.00014735,2]
[423732105,1780345840000,-500.0,0.00014649,2]
[423732102,1780345840000,-500.0,0.00014649,2]
[423732114,1780345840000,-500.0,0.00014735,2]
[423732113,1780345840000,-500.0,0.00014735,2]
[423732104,1780345840000,-500.0,0.00014649,2]
[423732103,1780345840000,-500.0,0.00014649,2]
[423732109,1780345840000,-500.0,0.00014735,2]
[423732115,1780345840000,-500.48367553,0.00014735,2]
[423732111,1780345840000,-500.0,0.00014735,2]
[423732110,1780345840000,-500.0,0.00014735,2]
[423732116,1780345840000,-358.8060726,0.00014735,2]
[423732119,1780345840000,-500.87784273,0.00014735,2]
[423732117,1780345840000,-500.0,0.00014735,2]
[423732118,1780345840000,-315.17416686,0.00014735,2]
[423732121,1780345840000,-500.0,0.00014735,2]
[423732120,1780345840000,-500.63153643,0.00014735,2]
[423732122,1780345840000,-500.42344594,0.00014735,2]
[423732124,1780345840000,-500.0,0.00014735,2]
[423732123,1780345840000,-500.0,0.00014735,2]
[423732125,1780345840000,-256.39923078,0.00014735,2]
[423732046,1780345840000,-606.63867265,0.00014634,2]
[423732092,1780345840000,-500.0,0.00014648,2]
[423732101,1780345840000,-471.97592163,0.00014649,2]
[423732107,1780345840000,-500.0,0.00014735,2]
[423732090,1780345840000,-500.0,0.00014648,2]
[423732042,1780345840000,-500.0,0.00014634,2]
[423732051,1780345840000,-500.0,0.00014634,2]
[423732049,1780345840000,-500.0,0.00014634,2]
[423732096,1780345840000,-500.0,0.00014648,2]
[423732053,1780345840000,-500.0,0.00014634,2]
[423732060,1780345840000,-500.0,0.00014634,2]
[423732057,1780345840000,-500.0,0.00014634,2]
[423732059,1780345840000,-500.0,0.00014634,2]
[423732062,1780345840000,-350.87263607,0.00014634,2]
[423732065,1780345840000,-500.0,0.00014634,2]
[423732076,1780345840000,-300.47813521,0.00014647,2]
[423732064,1780345840000,-500.0,0.00014634,2]
[423732078,1780345840000,-500.0,0.00014648,2]
[423732079,1780345840000,-500.0,0.00014648,2]
[423732055,1780345840000,-500.0,0.00014634,2]
[423732084,1780345840000,-521.82643852,0.00014648,2]
[423732072,1780345840000,-500.0,0.00014634,2]
[423732068,1780345840000,-500.0,0.00014634,2]
[423732081,1780345840000,-500.0,0.00014648,2]
[423732099,1780345840000,-500.0,0.00014648,2]
[423732066,1780345840000,-500.0,0.00014634,2]
[423732085,1780345840000,-500.0,0.00014648,2]
[423732074,1780345840000,-500.0,0.00014634,2]
[423732070,1780345840000,-500.0,0.00014634,2]
[423732087,1780345840000,-501.55429019,0.00014648,2]
[423732089,1780345840000,-501.2132747,0.00014648,2]
[423732097,1780345840000,-500.0,0.00014648,2]
[423732098,1780345840000,-500.0,0.00014648,2]
[423732067,1780345840000,-500.0,0.00014634,2]
[423732126,1780345841000,-243.60076922,0.00014735,2]
[423732127,1780345841000,-500.0,0.00014735,2]
[423732129,1780345841000,-501.16528798,0.00014735,2]
[423732130,1780345841000,-501.51230276,0.00014735,2]
[423732132,1780345841000,-205.06678306,0.00014735,2]
[423732131,1780345841000,-500.0,0.00014735,2]
[423732128,1780345841000,-306.28933814,0.00014735,2]
[423732166,1780345843000,-500.0,0.00014802,2]
[423732162,1780345843000,-151.0,0.00014735,2]
[423732163,1780345843000,-179.77460235,0.00014749,2]
[423732164,1780345843000,-190.7443691,0.00014777,2]
[423732161,1780345843000,-151.0,0.00014735,2]
[423732160,1780345843000,-151.0,0.00014735,2]
[423732159,1780345843000,-151.0,0.00014735,2]
[423732158,1780345843000,-151.0,0.00014735,2]
[423732156,1780345843000,-500.94469895,0.00014735,2]
[423732154,1780345843000,-500.0,0.00014735,2]
[423732153,1780345843000,-501.29167151,0.00014735,2]
[423732155,1780345843000,-186.47882676,0.00014735,2]
[423732151,1780345843000,-500.0,0.00014534,2]
[423732152,1780345843000,-294.93321694,0.00014735,2]
[423732157,1780345843000,-500.0,0.00014735,2]
[423732165,1780345843000,-1464.43417059,0.00014798,3]
[423732177,1780345843000,-500.0,0.00014807,2]
[423732170,1780345843000,-500.0,0.00014807,2]
[423732179,1780345843000,-500.0,0.00014807,2]
[423732182,1780345843000,-632.55482152,0.00014807,2]
[423732181,1780345843000,-501.34849625,0.00014807,2]
[423732183,1780345843000,-500.0,0.00014808,2]
[423732180,1780345843000,-500.0,0.00014807,2]
[423732178,1780345843000,-500.0,0.00014807,2]
[423732172,1780345843000,-500.0,0.00014807,2]
[423732168,1780345843000,-500.0,0.00014807,2]
[423732175,1780345843000,-500.0,0.00014807,2]
[423732171,1780345843000,-500.0,0.00014807,2]
[423732169,1780345843000,-500.0,0.00014807,2]
[423732176,1780345843000,-500.0,0.00014807,2]
[423732174,1780345843000,-525.21,0.00014807,2]
[423732167,1780345843000,-500.0,0.00014807,2]
[423732173,1780345843000,-500.0,0.00014807,2]
[423732184,1780345844000,-500.0,0.00014808,2]
[423732185,1780345844000,-1203.6,0.00014808,2]
[423732187,1780345844000,-93.67179251,0.00014808,2]
[423732189,1780345844000,-445.33201974,0.00014808,2]
[423732188,1780345844000,-502.66285442,0.00014808,2]
[423732186,1780345844000,-406.32820749,0.00014808,2]
[423732274,1780345846000,-500.0,0.00014808,2]
[423732270,1780345846000,-54.66798026,0.00014808,2]
[423732272,1780345846000,-500.0,0.00014808,2]
[423732266,1780345846000,-1103.3,0.00014533,2]
[423732276,1780345846000,-500.0,0.00014808,2]
[423732268,1780345846000,-1103.3,0.00014807,2]
[423732285,1780345846000,-500.0,0.00014808,2]
[423732280,1780345846000,-500.0,0.00014808,2]
[423732282,1780345846000,-500.0,0.00014808,2]
[423732289,1780345846000,-102.99320274,0.00014808,2]
[423732284,1780345846000,-500.0,0.00014808,2]
[423732287,1780345846000,-670.25,0.00014808,2]
[423732278,1780345846000,-500.0,0.00014808,2]
[423732679,1780345882000,5000.0,0.00023036,30]
[423732681,1780345929000,-160.3224683,0.0001372,2]
[423732682,1780345946000,-1865.87010969,0.00014102,2]
[423732686,1780346667000,45000.0,0.0002314,30]
[423732689,1780346976000,-5000.0,0.00011813,2]
[423732730,1780347032000,-2277.81744352,0.00013364,2]
[423732731,1780347032000,-280.47918636,0.00013364,2]
[423732715,1780347032000,-5000.0,0.00011813,2]
[423732725,1780347032000,-500.0,0.00013326,2]
[423732718,1780347032000,-160.0,0.00012042,2]
[423732720,1780347032000,-15000.0,0.00012811,2]
[423732719,1780347032000,-300.0,0.00012052,2]
[423732716,1780347032000,-10000.0,0.00011932,2]
[423732721,1780347032000,-325.62151074,0.00012987,2]
[423732717,1780347032000,-5000.0,0.00011932,2]
[423732722,1780347032000,-152.0,0.00013087,7]
[423732723,1780347032000,-152.0,0.00013087,7]
[423732728,1780347032000,-820.01427967,0.00013364,2]
[423732726,1780347032000,-6530.43046251,0.00013355,2]
[423732734,1780347032000,-2000.42206769,0.00013364,2]
[423732729,1780347032000,-1457.80316385,0.00013364,2]
[423732727,1780347032000,-455.5634887,0.00013364,2]
[423732724,1780347032000,-250.0,0.00013102,2]
[423732732,1780347032000,-2999.57793231,0.00013364,2]
[423732781,1780347040000,-500.0,0.00013598,2]
[423732796,1780347040000,-502.05069914,0.00013598,2]
[423732783,1780347040000,-500.0,0.00013598,2]
[423732794,1780347040000,-500.0,0.00013598,2]
[423732777,1780347040000,-500.0,0.00013598,2]
[423732779,1780347040000,-500.0,0.00013598,2]
[423732792,1780347040000,-500.0,0.00013598,2]
[423732790,1780347040000,-500.0,0.00013598,2]
[423732799,1780347040000,-524.64849091,0.00013598,2]
[423732788,1780347040000,-500.0,0.00013598,2]
[423732786,1780347040000,-500.0,0.00013598,2]
[423732767,1780347040000,-5831.21265541,0.00013364,2]
[423732769,1780347040000,-7380.128517,0.00013364,2]
[423732771,1780347040000,-9102.1585043,0.00013364,2]
[423732773,1780347040000,-500.0,0.00013598,2]
[423732765,1780347040000,-2464.10012161,0.00013364,2]
[423732763,1780347040000,-603.56531239,0.00013363,2]
[423732785,1780347040000,-314.05410148,0.00013598,2]
[423732801,1780347040000,-151.5,0.00013598,2]
[423732775,1780347040000,-500.0,0.00013598,2]
[423732802,1780347040000,-500.0,0.00013598,2]
[423732804,1780347040000,-500.0,0.00013598,2]
[423732824,1780347040000,-151.5,0.00013598,2]
[423732822,1780347040000,-500.0,0.00013598,2]
[423732817,1780347040000,-500.0,0.00013598,2]
[423732819,1780347040000,-500.0,0.00013598,2]
[423732820,1780347040000,-500.0,0.00013598,2]
[423732818,1780347040000,-518.58396802,0.00013598,2]
[423732823,1780347040000,-250.28998332,0.00013598,2]
[423732816,1780347040000,-500.0,0.00013598,2]
[423732821,1780347040000,-500.0,0.00013598,2]
[423732815,1780347040000,-500.0,0.00013598,2]
[423732812,1780347040000,-500.0,0.00013598,2]
[423732813,1780347040000,-500.0,0.00013598,2]
[423732811,1780347040000,-500.0,0.00013598,2]
[423732810,1780347040000,-500.0,0.00013598,2]
[423732809,1780347040000,-274.89988658,0.00013598,2]
[423732808,1780347040000,-500.0,0.00013598,2]
[423732807,1780347040000,-500.0,0.00013598,2]
[423732806,1780347040000,-500.0,0.00013598,2]
[423732814,1780347040000,-500.0,0.00013598,2]
[423732868,1780347041000,-500.0,0.00013698,2]
[423732874,1780347041000,-502.09231756,0.00013698,2]
[423732865,1780347041000,-500.0,0.00013698,2]
[423732875,1780347041000,-500.0,0.00013698,2]
[423732876,1780347041000,-500.0,0.00013698,2]
[423732859,1780347041000,-500.0,0.00013698,2]
[423732861,1780347041000,-500.0,0.00013698,2]
[423732858,1780347041000,-500.0,0.00013698,2]
[423732864,1780347041000,-500.0,0.00013698,2]
[423732862,1780347041000,-500.0,0.00013698,2]
[423732856,1780347041000,-500.0,0.00013698,2]
[423732877,1780347041000,-500.0,0.00013698,2]
[423732863,1780347041000,-500.0,0.00013698,2]
[423732878,1780347041000,-500.0,0.00013698,2]
[423732889,1780347041000,-500.0,0.00013698,2]
[423732879,1780347041000,-499.838,0.00013698,2]
[423732869,1780347041000,-500.0,0.00013698,2]
[423732870,1780347041000,-571.03919234,0.00013698,2]
[423732873,1780347041000,-500.0,0.00013698,2]
[423732872,1780347041000,-500.0,0.00013698,2]
[423732871,1780347041000,-500.0,0.00013698,2]
[423732880,1780347041000,-909.71,0.00013698,2]
[423732888,1780347041000,-500.0,0.00013698,2]
[423732857,1780347041000,-500.0,0.00013698,2]
[423732882,1780347041000,-500.0,0.00013698,2]
[423732891,1780347041000,-500.0,0.00013698,2]
[423732892,1780347041000,-500.0,0.00013698,2]
[423732890,1780347041000,-500.0,0.00013698,2]
[423732867,1780347041000,-500.0,0.00013698,2]
[423732855,1780347041000,-500.0,0.00013698,2]
[423732846,1780347041000,-500.0,0.00013698,2]
[423732860,1780347041000,-500.0,0.00013698,2]
[423732825,1780347041000,-175.4911037,0.00013598,2]
[423732826,1780347041000,-500.0,0.00013598,2]
[423732827,1780347041000,-500.0,0.00013598,2]
[423732831,1780347041000,-500.0,0.00013598,2]
[423732832,1780347041000,-500.0,0.00013598,2]
[423732833,1780347041000,-500.0,0.00013598,2]
[423732835,1780347041000,-572.7054161,0.00013598,2]
[423732839,1780347041000,-500.0,0.00013698,2]
[423732834,1780347041000,-500.0,0.00013598,2]
[423732837,1780347041000,-461.72283666,0.00013598,2]
[423732836,1780347041000,-161.98977442,0.00013598,2]
[423732838,1780347041000,-500.0,0.00013698,2]
[423732829,1780347041000,-500.0,0.00013598,2]
[423732830,1780347041000,-500.0,0.00013598,2]
[423732828,1780347041000,-500.0,0.00013598,2]
[423732840,1780347041000,-500.0,0.00013698,2]
[423732843,1780347041000,-500.0,0.00013698,2]
[423732844,1780347041000,-500.0,0.00013698,2]
[423732842,1780347041000,-513.693,0.00013698,2]
[423732845,1780347041000,-500.0,0.00013698,2]
[423732881,1780347041000,-3467.84,0.00013698,2]
[423732841,1780347041000,-500.0,0.00013698,2]
[423732852,1780347041000,-604.89,0.00013698,2]
[423732851,1780347041000,-286.774213,0.00013698,2]
[423732849,1780347041000,-469.637018,0.00013698,2]
[423732850,1780347041000,-1049.31,0.00013698,2]
[423732853,1780347041000,-601.94,0.00013698,2]
[423732847,1780347041000,-335.0,0.00013698,2]
[423732848,1780347041000,-500.3491506,0.00013698,2]
[423732854,1780347041000,-500.0,0.00013698,2]
[423732883,1780347041000,-231.53,0.00013698,2]
[423732866,1780347041000,-500.0,0.00013698,2]
[423732887,1780347041000,-500.0,0.00013698,2]
[423732936,1780347041000,-500.0,0.00013698,2]
[423732939,1780347041000,-500.0,0.00013698,2]
[423732946,1780347041000,-558.66,0.00013698,2]
[423732938,1780347041000,-2637.39,0.00013698,2]
[423732951,1780347041000,-500.0,0.00013698,2]
[423732941,1780347041000,-183.04041654,0.00013698,2]
[423732950,1780347041000,-724.3464,0.00013698,2]
[423732952,1780347041000,-500.0,0.00013698,2]
[423732956,1780347041000,-701.38,0.00013698,2]
[423732953,1780347041000,-973.07,0.00013698,2]
[423732963,1780347041000,-500.0,0.00013972,2]
[423732954,1780347041000,-500.0,0.00013698,2]
[423732964,1780347041000,-499.0,0.00013972,2]
[423732958,1780347041000,-500.0,0.00013698,2]
[423732962,1780347041000,-500.0,0.00013972,2]
[423732960,1780347041000,-461.72283662,0.00013735,2]
[423732959,1780347041000,-500.0,0.00013698,2]
[423732957,1780347041000,-500.0,0.00013698,2]
[423732961,1780347041000,-461.72283662,0.00013872,2]
[423732967,1780347041000,-500.0,0.00013972,2]
[423732965,1780347041000,-500.0,0.00013972,2]
[423732968,1780347041000,-469.637018,0.00013972,2]
[423732969,1780347041000,-1049.31,0.00013972,2]
[423732970,1780347041000,-286.774213,0.00013972,2]
[423732966,1780347041000,-500.0,0.00013972,2]
[423732973,1780347041000,-186.13497545,0.00013972,2]
[423732971,1780347041000,-500.0,0.00013972,2]
[423732972,1780347041000,-500.0,0.00013972,2]
[423732884,1780347041000,-2476.41,0.00013698,2]
[423732943,1780347041000,-500.0,0.00013698,2]
[423732944,1780347041000,-511.83,0.00013698,2]
[423732955,1780347041000,-13655.75,0.00013698,2]
[423732932,1780347041000,-500.0,0.00013698,2]
[423732885,1780347041000,-1019.21,0.00013698,2]
[423732934,1780347041000,-500.0,0.00013698,2]
[423732886,1780347041000,-500.0,0.00013698,2]
[423732893,1780347041000,-175.09,0.00013698,2]
[423732899,1780347041000,-1835.69,0.00013698,2]
[423732897,1780347041000,-280.12,0.00013698,2]
[423732895,1780347041000,-500.0,0.00013698,2]
[423732900,1780347041000,-796.67,0.00013698,2]
[423732901,1780347041000,-500.0,0.00013698,2]
[423732898,1780347041000,-500.0,0.00013698,2]
[423732902,1780347041000,-1685.97,0.00013698,2]
[423732904,1780347041000,-500.0,0.00013698,2]
[423732903,1780347041000,-202.91,0.00013698,2]
[423732906,1780347041000,-1740.0,0.00013698,2]
[423732905,1780347041000,-223.63,0.00013698,2]
[423732896,1780347041000,-708.35,0.00013698,2]
[423732918,1780347041000,-500.0,0.00013698,2]
[423732928,1780347041000,-340.72,0.00013698,2]
[423732894,1780347041000,-682.34,0.00013698,2]
[423732930,1780347041000,-500.0,0.00013698,2]
[423732913,1780347041000,-492.2,0.00013698,2]
[423732924,1780347041000,-515.48,0.00013698,2]
[423732914,1780347041000,-516.54,0.00013698,2]
[423732916,1780347041000,-225.30640717,0.00013698,2]
[423732926,1780347041000,-791.12,0.00013698,2]
[423732910,1780347041000,-500.0,0.00013698,2]
[423732920,1780347041000,-500.0,0.00013698,2]
[423732907,1780347041000,-500.0,0.00013698,2]
[423732909,1780347041000,-499.47667092,0.00013698,2]
[423732922,1780347041000,-239.67,0.00013698,2]
[423733010,1780347042000,-515.48,0.00013972,2]
[423733024,1780347042000,-500.0,0.00013972,2]
[423733020,1780347042000,-724.3464,0.00013972,2]
[423733017,1780347042000,-500.0,0.00013972,2]
[423733005,1780347042000,-1740.0,0.00013972,2]
[423733018,1780347042000,-511.83,0.00013972,2]
[423733007,1780347042000,-500.0,0.00013972,2]
[423733012,1780347042000,-500.0,0.00013972,2]
[423733013,1780347042000,-500.0,0.00013972,2]
[423733009,1780347042000,-500.0,0.00013972,2]
[423733014,1780347042000,-500.0,0.00013972,2]
[423733019,1780347042000,-558.66,0.00013972,2]
[423733022,1780347042000,-500.0,0.00013972,2]
[423733011,1780347042000,-791.12,0.00013972,2]
[423733023,1780347042000,-973.07,0.00013972,2]
[423733037,1780347042000,-151.0,0.00013992,2]
[423733027,1780347042000,-268.56610165,0.00013972,2]
[423733026,1780347042000,-701.38,0.00013972,2]
[423733031,1780347042000,-151.0,0.00013992,2]
[423733030,1780347042000,-151.0,0.00013992,2]
[423733033,1780347042000,-151.0,0.00013992,2]
[423733029,1780347042000,-151.0,0.00013992,2]
[423733021,1780347042000,-500.0,0.00013972,2]
[423733028,1780347042000,-500.0,0.00013972,2]
[423733032,1780347042000,-151.0,0.00013992,2]
[423733034,1780347042000,-151.0,0.00013992,2]
[423733035,1780347042000,-151.0,0.00013992,2]
[423733036,1780347042000,-151.0,0.00013992,2]
[423733008,1780347042000,-516.54,0.00013972,2]
[423733038,1780347042000,-151.0,0.00013992,2]
[423733025,1780347042000,-13655.75,0.00013972,2]
[423733015,1780347042000,-2637.39,0.00013972,2]
[423732977,1780347042000,-500.0,0.00013972,2]
[423733006,1780347042000,-500.0,0.00013972,2]
[423733040,1780347042000,-151.0,0.00013992,2]
[423732975,1780347042000,-500.0,0.00013972,2]